Cogmind - Beta 13 @@@ ROGUE MODE // 2024.02.22 @ 15:02:42 Player: Minty Result: Destroyed by G-47 Trooper with Particle Gun Performance ------------- Evolutions (0) 0 Regions Visited (2) 400 Robots Destroyed (17) 85 Value Destroyed (470) 470 Prototype IDs (2) 40 Alien Tech Used (0) 0 Bonus (0) 0 TOTAL SCORE: 995 Bonus ------- None Cogmind --------- Core Integrity 0/250 Matter 291/300 Energy 96/100 System Corruption 0% Temperature Cool (9) Movement Core (150) Ox2 Location -10/Mines Parts ------- > --- POWER (1) -------- (None) > --- PROPULSION (2) --- (None) > --- UTILITY (2) ------ Heat Sink Small Storage Unit > --- WEAPON (2) ------- Mining Claw > --- INVENTORY (8) ---- Ion Engine Flight Unit Improved Heat Sink Sensor Array Weapon Shielding Hacking Suite Grenade Launcher Peak State ------------ > --- POWER ------------ Light Nuclear Core > --- PROPULSION ------- Light Treads Light Treads > --- UTILITY ---------- Improved Heat Sink Small Storage Unit > --- WEAPON ----------- Small Laser Assault Rifle > --- INVENTORY -------- Ion Engine Compact Wheel Flight Unit Heat Sink Sensor Array Light Assault Rifle Mining Claw [Rating: 11] Favorites ----------- Power Ion Engine Engine Ion Engine Power Core Light Nuclear Core Propulsion Light Treads Treads Light Treads Leg Aluminum Leg Hover Unit Hover Unit Utility Small Storage Unit Device Heat Sink Storage Small Storage Unit Protection Light Armor Plating Weapon Small Laser Energy Gun Small Laser Ballistic Gun Assault Rifle Launcher Grenade Launcher Slashing Weapon Mining Claw Build | -11 -10 -10 ------- Run | Yrd Mat Min Slots Evolved . | . . . Power . | . . . Propulsion . | . . . Utility . | . . . Weapon . | . . . Parts Attached 20 | . 17 3 Power 3 | . 3 . Engine 2 | . 2 . Core 1 | . 1 . Reactor . | . . . Propulsion 5 | . 4 1 Treads 2 | . 2 . Leg 2 | . 2 . Wheel . | . . . Hover 1 | . . 1 Flight . | . . . Utility 5 | . 5 . Device 4 | . 4 . Storage . | . . . Processor . | . . . Hackware . | . . . Protection 1 | . 1 . Artifact . | . . . Weapon 7 | . 5 2 Energy Gun 3 | . 3 . Energy Cannon . | . . . Ballistic Gun 1 | . . 1 Ballistic Cannon . | . . . Launcher 1 | . 1 . Special Weapon . | . . . Impact Weapon . | . . . Slashing Weapon 2 | . 1 1 Piercing Weapon . | . . . Special Melee Weapon . | . . . Unidentified Prototypes . | . . . Parts Lost 9 | . 5 4 Power 2 | . 1 1 Propulsion 2 | . 1 1 Utility 1 | . 1 . Weapon 4 | . 2 2 Highest Loss Streak 4 | . 3 4 To Critical Strikes . | . . . Average Slot Usage (%) 95 | . 98 80 Engine 7 | . 6 12 Core 5 | . 6 . Treads 12 | . 14 . Leg 11 | . 13 1 Hover 1 | . . 10 Device 11 | . 11 14 Storage 14 | . 14 14 Protection 1 | . 2 . Energy Gun 10 | . 10 13 Ballistic Gun 5 | . 6 1 Launcher 3 | . 4 . Slashing Weapon 6 | . 5 12 Naked Turns . | . . . Heaviest Build 16 | 11 16 14 Greatest Support 40 | 20 40 20 Greatest Overweight (x) 2 | . 1 2 Average Overweight (x) . | . . 1 Largest Inventory Capacity 8 | . 8 8 Average Capacity 8 | . 8 8 Most Carried 8 | . 8 8 Average Carried 7 | . 7 7 Final Capacity 8 | 8 8 8 Final Carried 8 | 6 8 7 Class Distribution -------------------- 74% | Mutant 25% | Scavenger-Mutant Dominant Class ---------------- Mutant | -10/Materials Mutant | -10/Mines Resources | -11 -10 -10 ----------- Run | Yrd Mat Min Matter Collected 551 | 200 341 10 Remotely . | . . . Salvage Created 553 | . 522 31 Parts 38 | . 37 1 Haulers Intercepted 2 | . 2 . Recyclers Shooed 1 | . 1 . Parts Field Recycled . | . . . Retrieved Matter . | . . . Parts Self-Destructed . | . . . Prevented . | . . . Kills | -11 -10 -10 ------- Run | Yrd Mat Min Combat Hostiles Destroyed 12 | . 11 1 Melee 2 | . 2 . Guns 8 | . 7 1 AOE 2 | . 2 . Classes Destroyed 5 | . 5 . Worker 1 | . 1 . Builder 1 | . 1 . Hauler 2 | . 2 . Operator 1 | . 1 . Grunt 12 | . 11 1 Best Kill Streak 3 | . 3 1 Combat Bots Only 3 | . 3 1 Max Kills in Single Turn 1 | . 1 1 Gunslinging . | . . . Exploded 1 | . 1 . Melee 1 | . 1 . Uniques/NPCs Destroyed . | . . . Combat | -11 -10 -10 -------- Run | Yrd Mat Min Hostile Shots Fired 111 | . 79 32 Missed 23 | . 18 5 Damage Taken 1284 | . 903 381 Core 259 | . 116 143 Absorbed by Shields . | . . . Core Remaining (%) 100 | 100 . . Volleys Fired 49 | . 40 9 Largest 2 | . 2 2 Hottest 70 | . 70 60 Shots Fired 86 | . 68 18 Gun 78 | . 60 18 Cannon . | . . . Launcher 8 | . 8 . Special . | . . . Kinetic 32 | . 23 9 Thermal 46 | . 37 9 Explosive 8 | . 8 . Electromagnetic . | . . . Robot Hit Streak 12 | . 12 10 Robot Miss Streak 5 | . 5 1 Penetration Max . | . . . Secondary Targets 3 | . 2 1 Max Gunslinging Chain 1 | . 1 1 Shots Hit Robots 74 | . 56 18 Core Hits 33 | . 30 3 Critical Kills . | . . . Critical Parts Destroyed . | . . . Critical Strikes . | . . . Melee Attacks 17 | . 14 3 Impact . | . . . Slashing 17 | . 14 3 Piercing . | . . . Sneak Attacks 5 | . 5 . Combat Hostiles . | . . . Follow-up Attacks . | . . . Damage Inflicted 1297 | . 1107 190 Guns 651 | . 486 165 Cannons . | . . . Explosions 295 | . 295 . Melee 349 | . 324 25 Ramming 2 | . 2 . Kinetic 234 | . 169 65 Thermal 417 | . 317 100 Explosive 295 | . 295 . Electromagnetic . | . . . Impact . | . . . Slashing 349 | . 324 25 Piercing . | . . . Highest Corruption . | . . . Average Corruption . | . . . Corruption Purged . | . . . Corruption Blocked . | . . . Overload Shots . | . . . Overflow Damage 27 | . 27 . Projectiles . | . . . Explosions 22 | . 22 . Melee 5 | . 5 . Knockbacks . | . . . Impact . | . . . Kinetic . | . . . Secondary . | . . . Self-Inflicted Damage 150 | . 150 . Shots 5 | . 5 . Rammed 1 | . 1 . Targets Rammed 1 | . 1 . Kicked . | . . . Crushed . | . . . Highest Temperature 311 | . 311 40 Average Temperature 137 | . 161 18 Received Heat Transfer 723 | . 453 270 Effects 1 | . 1 . Matter Decay 1 | . 1 . Siege Activations . | . . . Robots Corrupted . | . . . Combat Hostiles . | . . . Parts Fried . | . . . Impact Corruptions . | . . . Robots Melted . | . . . Combat Hostiles . | . . . Parts Melted 1 | . 1 . Heat Transferred 950 | . 725 225 Parts Sabotaged . | . . . Parts Stolen . | . . . Parts Stripped . | . . . Power Chain Reactions . | . . . Alert | -11 -10 -10 ------- Run | Yrd Mat Min Peak Influence 283 | . 283 51 Initial 51 | . . 51 Average 127 | . 143 49 Maximum Alert Level 1 | . 1 . Low Security (%) 78 | . 74 100 Level 1 21 | . 25 . Level 2 . | . . . Level 3 . | . . . Level 4 . | . . . Level 5 . | . . . High Security . | . . . Max Security . | . . . Squads Dispatched 4 | . 4 . Investigation 3 | . 3 . Extermination . | . . . Reinforcement 1 | . 1 . Assault . | . . . Garrison . | . . . Intercept . | . . . Searches Triggered . | . . . Construction Impeded . | . . . Haulers Reinforced . | . . . Active Scanning Responses . | . . . Cargo Convoy Interrupts . | . . . Stealth | -11 -10 -10 --------- Run | Yrd Mat Min Distress Signals 1 | . 1 . Communications Jammed . | . . . Distress Signals . | . . . Times Spotted 15 | . 13 2 Peak Tracking Total 3 | . 3 2 Tactical Retreats 1 | . 1 . Traps | -11 -10 -10 ------- Run | Yrd Mat Min Traps Triggered 1 | . 1 . Indirectly . | . . . Trap Hack Attempts . | . . . Triggered . | . . . Disarmed . | . . . Reprogrammed 6 | . 6 . Reused 1 | . 1 . Traps Extracted . | . . . Installed . | . . . Triggered 1 | . 1 . Objects Rigged 2 | . 2 . Machines | -11 -10 -10 ---------- Run | Yrd Mat Min Machines Disabled 1 | . 1 . Max in Single Turn 1 | . 1 . Machines Repaired . | . . . Machines Dismantled . | . . . Machines Sabotaged . | . . . Overloaded Fab Kills . | . . . Hacking | -11 -10 -10 --------- Run | Yrd Mat Min Machines Accessed 5 | . 5 . Terminals 4 | . 4 . Fabricators . | . . . Repair Stations . | . . . Recycling Units 1 | . 1 . Scanalyzers . | . . . Garrison Access . | . . . Total Hacks 24 | . 24 . Successful 11 | . 11 . Failed 13 | . 13 . Catastrophic 2 | . 2 . Database Lockouts . | . . . Manual 14 | . 14 . Terminals 21 | . 21 . Fabricators . | . . . Repair Stations . | . . . Recycling Units 3 | . 3 . Scanalyzers . | . . . Garrison Access . | . . . Terminal Hacks 4 | . 4 . Prototype ID Bank 1 | . 1 . Terminal Index 1 | . 1 . Locate Traps 1 | . 1 . Reprogram Traps 1 | . 1 . Fabricator Hacks . | . . . Repair Station Hacks . | . . . Recycling Unit Hacks 1 | . 1 . Report Inventory 1 | . 1 . Scanalyzer . | . . . Garrison Access Hacks . | . . . Unauthorized Hacks 6 | . 6 . Terminals 5 | . 5 . Track 1 | . 1 . Botnet 2 | . 2 . Detonate 1 | . 1 . Operators 1 | . 1 . Fabricators . | . . . Repair Stations . | . . . Recycling Units 1 | . 1 . Tunnel 1 | . 1 . Scanalyzers . | . . . Garrison Access . | . . . Data Cores Recovered . | . . . Used . | . . . Hacking Detections 5 | . 5 . Full Trace Events 4 | . 4 . Feedback Events . | . . . Feedback Blocked . | . . . Robot Schematics Acquired . | . . . Robots Built . | . . . Authchips . | . . . Time . | . . . Total Robot Build Rating . | . . . Part Schematics Acquired . | . . . Parts Built . | . . . Authchips . | . . . Time . | . . . Total Part Build Rating . | . . . Parts Repaired . | . . . Time . | . . . Parts Recycled . | . . . Recycled Matter . | . . . Retrieved Matter . | . . . Retrieved Components . | . . . Parts Scanalyzed . | . . . Part Schematics Acquired . | . . . Parts Damaged . | . . . Bothacking | -11 -10 -10 ------------ Run | Yrd Mat Min Used RIF Installer . | . . . Robots Hacked . | . . . Non-combat . | . . . Combat . | . . . Robot Hacks Applied . | . . . Relay Couplers Released . | . . . Fabnet Peak Effective % . | . . . Robots Rewired . | . . . Allies Hacked . | . . . Hacks Repelled . | . . . Allies | -11 -10 -10 -------- Run | Yrd Mat Min Total Allies . | . . . Largest Group . | . . . Highest-Rated Group . | . . . Highest-Rated Ally . | . . . Total Orders . | . . . Ally Attacks . | . . . Total Damage . | . . . Kills . | . . . Allies Corrupted . | . . . Allies Melted . | . . . Intel | -11 -10 -10 ------- Run | Yrd Mat Min Robot Analysis Total . | . . . Derelict Logs Recovered . | . . . Drone Launches . | . . . Drone Recoveries . | . . . Exploration | -11 -10 -10 ------------- Run | Yrd Mat Min Turns Passed 1021 | . 850 171 Spaces Moved 552 | 1 475 76 Core . | . . . Treads 228 | . 228 . Legs 255 | 1 247 7 Wheels . | . . . Hover 69 | . . 69 Flight . | . . . Fastest Speed 120 | 120 120 120 Average Speed 144 | 120 139 174 Slowest Speed 190 | 120 190 180 Overloaded Moves . | . . . Propulsion Burnouts . | . . . Robots Hopped . | . . . Cave-ins Triggered . | . . . Exploration Rate (%) 33 | 2 74 24 Regions Visited 2 Branch Regions 1 Pre-discovered Areas 1 | . 1 . Known Exits Taken . | . . . Unknown Exits Taken 2 | 1 1 . Scrap Searched . | . . . Spaces Dug 1 | . 1 . Terrain Destroyed 51 | . 51 . Melee 1 | . 1 . Projectile . | . . . AOE 50 | . 50 . Terrain Rammed . | . . . Walls Destroyed . | . . . Machines Disabled . | . . . Actions | -11 -10 -10 --------- Run | Yrd Mat Min Total 657 | . 564 93 Wait 1 | . 1 . Move 550 | . 474 76 Hop . | . . . Pick Up 7 | . 7 . Fast Attach 8 | . 7 1 Attach 3 | . 2 1 Detach . | . . . Swap 9 | . 8 1 Drop 12 | . 10 2 Fire 49 | . 40 9 Melee 17 | . 14 3 Ram . | . . . Kick . | . . . Crush 1 | . 1 . Escape Stasis . | . . . Rewire . | . . . Trap . | . . . Miscellaneous . | . . . Route ------- -11/Scrapyard -10/Materials (discovered 3 exits: [*Mat] / [*Min] / [*Sub]) -10/Mines History --------- Turn | Location | Event 1 | -11/Scrapyard | Discovered new exit (range 0) 1 | -11/Scrapyard | Entered Materials 181 | -10/Materials | Met 8R-AWN 196 | -10/Materials | Lost 3 parts (1n1u1w) 221 | -10/Materials | Discovered new exit (range 16) 300 | -10/Materials | Build established: Mutant 427 | -10/Materials | Discovered new exit (range 13) 737 | -10/Materials | Discovered new exit (range 13) 851 | -10/Materials | Entered Mines 853 | -10/Mines | Followed 8R-AWN into the Mines 982 | -10/Mines | Core integrity fell below 50% 1013 | -10/Mines | Core integrity fell below 20% 1022 | -10/Mines | Destroyed by G-47 Trooper with Particle Gun Last Messages --------------- LOCATION=UNKNOWN GOAL=ESCAPE Something is scanning the area. 8R-AWN: Took you long enough, hurry up, we still have some ground to cover! 00860_ Dropped Aluminum Leg. 00861_ Acquired Hover Unit. 00864_ Acquired 10 matter. 00938_ K-01 Serf collects debris. 00986_ Seismic Survey Station disabled. 00994_ Critical hit (Burn: +37). 00997_ Hover Unit destroyed. 00999_ Destroyed Sml. Laser. 01000_ Ion Engine destroyed. 01002_ G-34 Mercenary destroyed. 01002_ Switching to secondary target: G-47 Trooper. 01002_ Critical hit (Burn: +37). 01014_ Lgt. Assault Rifle destroyed. 01016_ Sml. Laser destroyed. 01018_ Critical hit (Burn: +37). Map ----- +----------------------------------------------------+ | ?????????????????????????????????????????????????? | | ?????????????????????????????????????????????????? | | ?????????????????????????????????????????????????? | | ?????????????????????????????????????????????????? | | ?????????????????????????????????????????????????? | | ?????????????????????????????????????????????????? | | ?????????????????????????????????????????????????? | | ?????????????????????????????????????????????????? | | ?????????????????????????????????????????????????? | | ????????????????????????????????????????????????## | | ????????????????????????????????????????????????# | | ????????????????????????????????????????????????? | | ????????????????????????????????????????????????? | | ????????????????????????????????????????????????? | | ?????????????????????????????????????????????????# | | ????????????????????????????????????????????????## | | ????????????????????????????????????????????????? | | ?????????????????????????????????????????????????# | | ?????????????????????????????????????????????????# | | ????????????????????????????????###??????????????# | | ????????????????????########????# ?????????????## | | ????????????????????# #????# #?????????????# | | ????????????????????# #????# #?????????????# | | ????????????????????# """ #????# #?????????????# | | ????????????????????# """ g#???## ##????????????## | | ????????????????????# " @ #???# ##????????????# | | ????????????????????# %= #???# ###??????????# | | ????????????????????# #???# ####???????? | | ????????????????????#### ###???# ##???#### | | ???????????????????????# #?????# ##??# | | ???????????????????????# ####### ##?# ## | | ???????????????????????# ### ## | | ???????????????????????# | | ???????????????????????## ######## #### | | ????????????????????????# #??????## ## #??? | | ????????????????????????# #???????## #### #??? | | ????????????????????????# #????????# #??## ##??? | | ????????????????????????# #???????? #???### #???? | | ????????????????????????# #???????## #?????# #???? | | ???????????????????????? #???????? #?????# #???? | | ????????????????????????###????????###?????# #???? | | ??????????????????????????????????????????? #???? | | ???????????????????????????????????????????# #???? | | ???????????????????????????????????????????# #???? | | ???????????????????????????????????????????# #???? | | ???????????????????????????????????????????? ????? | | ???????????????????????????????????????????? ????? | | ???????????????????????????????????????????? ????? | | ?????????????????????????????????????????????????? | | ?????????????????????????????????????????????????? | +----------------------------------------------------+ Best States ------------- Heat Dissipation 35 Energy Generation 14 Energy Capacity 250 Matter Stores 300 Matter Capacity 300 Sight Range 16 Terrain Scan Density 10 Armor Coverage 150 Evasion (%) 55 Recoil Reduction 2 Item Schematics ----------------- None Robot Schematics ------------------ None Fabricated ------------ Nothing Alien Tech Used ----------------- None Achievements -------------- None Challenges ------------ None Game ------ Seed PointWeightField Manual? 0 Play Time 00:04:53 Cumulative 669.0 hours Start 2024.02.22 @ 14:58:20 End 2024.02.22 @ 15:02:42 Sessions 1 Manual Loads 0 Difficulty Rogue Special Mode None Game No. 682 Rogue 407 Adventurer 123 Explorer 152 Win Type - Total 25 Types 19/0/4/1/0/0/0/1/0 Lore% 80 Gallery% 91 Achievement% 76 Wizard Run 0 Options --------- Layout 0 ASCII 0 Keyboard 1 Movement Numpad Keybinds 0 Fullscreen 2 Font 18/SmallcapsGlow Map View 76x50 Zoom Use 0% Tactical HUD 1 Map Filters NONE Filters NONE Steam 1 RUN: 2f589431-aea6-48cb-bf64-792c8da67cc4